fUST/lending_fUST_20250610
["ID","MTS","AMOUNT","RATE_DAILY","PERIOD"]
[365269733,1749570653088,-460.0,0.00023013,4]
[365269735,1749570653098,-300.0,0.00023013,4]
[365269737,1749570653108,-460.0,0.00023013,4]
[365269739,1749570653117,-1965.04,0.00023013,4]
[365269741,1749570653127,-460.0,0.00023013,4]
[365269744,1749570653136,-460.0,0.00023013,4]
[365269746,1749570653146,-350.0,0.00023013,4]
[365269748,1749570653155,-460.0,0.00023013,4]
[365269750,1749570653165,-814.81,0.00023013,4]
[365269751,1749570653174,-460.0,0.00023013,4]
[365269753,1749570653184,-1416.8,0.00023013,4]
[365269755,1749570653195,-1837.17,0.00023013,4]
[365269757,1749570653205,-1153.37,0.00023013,4]
[365269760,1749570653214,-290.0,0.00023013,4]
[365269761,1749570653223,-469.59,0.00023013,4]
[365269763,1749570653233,-500.0,0.00023066,2]
[365269765,1749570653242,-43388.53,0.000231,2]
[365269768,1749570653252,-106395.94,0.000231,7]
[365269769,1749570653261,-151.0,0.000231,7]
[365269771,1749570653270,-151.0,0.000231,7]
[365269774,1749570653280,-271.2048,0.000231,7]
[365269775,1749570653290,-151.0,0.000231,7]
[365269777,1749570653299,-662.84716369,0.00023107,8]
[365269779,1749570653308,-564.37,0.000232,7]
[365269781,1749570653318,-1000.0,0.00023221,2]
[365269783,1749570653327,-662.84716369,0.00023245,8]
[365269785,1749570653338,-443.72833664,0.00023257,2]
[365269788,1749570653349,-296.0,0.00023281,2]
[365269789,1749570653361,-200.0,0.00023287,4]
[365269792,1749570653372,-460.0,0.00023287,4]
[365269793,1749570653382,-460.0,0.00023287,4]
[365269795,1749570653391,-460.0,0.00023287,4]
[365269797,1749570653401,-1334.73,0.00023287,4]
[365269799,1749570653410,-650.05,0.00023287,4]
[365269801,1749570653420,-460.0,0.00023287,4]
[365269803,1749570653429,-460.0,0.00023287,4]
[365269805,1749570653439,-460.0,0.00023287,4]
[365269807,1749570653448,-460.0,0.00023287,4]
[365269809,1749570653459,-460.0,0.00023287,4]
[365269811,1749570653468,-812.5,0.00023287,4]
[365269813,1749570653478,-460.0,0.00023287,4]
[365269815,1749570653489,-825.32,0.00023287,4]
[365269817,1749570653498,-220.0,0.00023287,4]
[365269819,1749570653508,-460.0,0.00023287,4]
[365269821,1749570653518,-460.0,0.00023287,4]
[365269823,1749570653528,-460.0,0.00023287,4]
[365269825,1749570653537,-460.0,0.00023287,4]
[365269827,1749570653547,-527.68,0.00023287,4]
[365269829,1749570653556,-1047.45,0.00023287,4]
[365269831,1749570653566,-460.0,0.00023287,4]
[365269833,1749570653575,-923.93,0.00023287,4]
[365269835,1749570653585,-549.64,0.00023287,4]
[365269838,1749570653595,-460.0,0.00023287,4]
[365269852,1749570653725,-460.0,0.00023287,4]
[365269854,1749570653735,-460.0,0.00023287,4]
[365269856,1749570653745,-460.0,0.00023287,4]
[365269858,1749570653755,-716.15,0.00023287,4]
[365269860,1749570653764,-460.0,0.00023287,4]
[365269862,1749570653773,-626.47,0.00023287,4]
[365269864,1749570653783,-460.0,0.00023287,2]
[365269866,1749570653792,-1679.86,0.00023287,4]
[365269868,1749570653802,-460.0,0.00023287,4]
[365269870,1749570653812,-460.0,0.00023287,4]
[365269872,1749570653821,-460.0,0.00023287,4]
[365269874,1749570653831,-1525.67,0.00023287,4]
[365269876,1749570653840,-706.05,0.00023287,4]
[365269878,1749570653850,-698.81,0.00023287,4]
[365269880,1749570653859,-1554.25,0.00023287,4]
[365269882,1749570653869,-460.0,0.00023287,4]
[365269884,1749570653879,-460.0,0.00023287,4]
[365269886,1749570653888,-460.0,0.00023287,4]
[365269888,1749570653898,-1965.04,0.00023287,4]
[365269890,1749570653907,-460.0,0.00023287,4]
[365269892,1749570653917,-460.0,0.00023287,4]
[365269894,1749570653927,-460.0,0.00023287,4]
[365269896,1749570653936,-814.81,0.00023287,4]
[365269898,1749570653949,-460.0,0.00023287,4]
[365269900,1749570653958,-1416.8,0.00023287,4]
[365269902,1749570653968,-1837.17,0.00023287,4]
[365269904,1749570653977,-1153.37,0.00023287,4]
[365269906,1749570653987,-469.59,0.00023287,4]
[365269908,1749570653996,-151.0,0.000233,9]
[365269910,1749570654006,-5000.0,0.00023303,2]
[365269912,1749570654015,-662.84716369,0.00023383,9]
[365269914,1749570654024,-443.72833664,0.00023457,2]
[365269915,1749570654034,-1290.5,0.000235,2]
[365269918,1749570654044,-662.84716369,0.00023521,9]
[365269920,1749570654054,-3235.48,0.00023552,2]
[365269922,1749570654064,-460.0,0.00023561,4]
[365269924,1749570654074,-460.0,0.00023561,4]
[365269926,1749570654084,-460.0,0.00023561,4]
[365269928,1749570654094,-1334.73,0.00023561,4]
[365269929,1749570654103,-650.05,0.00023561,4]
[365269932,1749570654113,-460.0,0.00023561,4]
[365269934,1749570654123,-460.0,0.00023561,4]
[365269936,1749570654133,-460.0,0.00023561,4]
[365269938,1749570654143,-460.0,0.00023561,4]
[365269940,1749570654153,-460.0,0.00023561,4]
[365269942,1749570654163,-789.704519,0.00023561,7]
[365269944,1749570654173,-812.5,0.00023561,4]
[365269946,1749570654183,-789.704519,0.00023561,7]
[365269948,1749570654194,-460.0,0.00023561,4]
[365269950,1749570654204,-825.32,0.00023561,4]
[365269952,1749570654214,-570.66140974,0.00023561,4]
[365269954,1749570654226,-460.0,0.00023561,4]
[365269956,1749570654236,-460.0,0.00023561,4]
[365269958,1749570654246,-460.0,0.00023561,4]
[365269960,1749570654257,-527.68,0.00023561,4]
[365269962,1749570654267,-339.248987,0.00023561,7]
[365269964,1749570654277,-339.248987,0.00023561,7]
[365269966,1749570654287,-1047.45,0.00023561,4]
[365269968,1749570654298,-460.0,0.00023561,4]
[365269970,1749570654307,-923.93,0.00023561,4]
[365269972,1749570654318,-549.64,0.00023561,4]
[365269974,1749570654327,-460.0,0.00023561,4]
[365269976,1749570654336,-221.37,0.00023561,4]
[365269978,1749570654346,-460.0,0.00023561,4]
[365269980,1749570654356,-530.0,0.00023561,4]
[365269982,1749570654365,-716.15,0.00023561,4]
[365269984,1749570654374,-460.0,0.00023561,4]
[365269986,1749570654384,-626.47,0.00023561,4]
[365269988,1749570654394,-460.0,0.00023561,2]
[365269990,1749570654403,-1679.86,0.00023561,4]
[365269992,1749570654413,-460.0,0.00023561,4]
[365269994,1749570654422,-460.0,0.00023561,4]
[365269996,1749570654431,-400.0,0.00023561,4]
[365269998,1749570654442,-1525.67,0.00023561,4]
[365270000,1749570654452,-706.05,0.00023561,4]
[365270002,1749570654461,-698.81,0.00023561,4]
[365270003,1749570654472,-1554.25,0.00023561,4]
[365270005,1749570654486,-460.0,0.00023561,4]
[365270008,1749570654496,-460.0,0.00023561,4]
[365270009,1749570654505,-460.0,0.00023561,4]
[365270011,1749570654516,-1965.04,0.00023561,4]
[365270013,1749570654525,-460.0,0.00023561,4]
[365270015,1749570654535,-460.0,0.00023561,4]
[365270017,1749570654544,-460.0,0.00023561,4]
[365270019,1749570654555,-814.81,0.00023561,4]
[365270021,1749570654565,-460.0,0.00023561,4]
[365270023,1749570654575,-1416.8,0.00023561,4]
[365270025,1749570654584,-1837.17,0.00023561,4]
[365270027,1749570654594,-1153.37,0.00023561,4]
[365270029,1749570654604,-1541.67,0.000236,7]
[365270031,1749570654613,-151.0,0.000236,5]
[365270033,1749570654623,-443.72833664,0.00023637,2]
[365270035,1749570654633,-662.84716369,0.00023659,9]
[365270037,1749570654642,-217.63704008,0.00023693,2]
[365270039,1749570654652,-364.8515477,0.00023699,2]
[365270041,1749570654662,-2000.0,0.00023741,3]
[365270043,1749570654671,-500.0,0.00023769,2]
[365270045,1749570654680,-965.62,0.00023784,2]
[365270047,1749570654691,-653.0,0.00023784,2]
[365270049,1749570654701,-2160.0,0.00023784,2]
[365270051,1749570654710,-405.0,0.00023784,2]
[365270053,1749570654720,-6000.0,0.00023786,3]
[365270055,1749570654730,-662.84716369,0.00023797,9]
[365270057,1749570654739,-3000.0,0.00023808,3]
[365270059,1749570654749,-213.1263252,0.0002381,3]
[365270061,1749570654758,-160.0,0.0002381,3]
[365270063,1749570654767,-460.0,0.00023835,4]
[365270065,1749570654777,-369.9338273,0.00023835,4]
[365270067,1749570654787,-460.0,0.00023835,4]
[365270069,1749570654798,-1334.73,0.00023835,4]
[365270071,1749570654807,-650.05,0.00023835,4]
[365270073,1749570654816,-460.0,0.00023835,4]
[365270074,1749570654826,-460.0,0.00023835,4]
[365270076,1749570654837,-460.0,0.00023835,4]
[365270078,1749570654847,-460.0,0.00023835,4]
[365270080,1749570654857,-460.0,0.00023835,4]
[365270082,1749570654867,-812.5,0.00023835,4]
[365270084,1749570654878,-460.0,0.00023835,4]
[365270086,1749570654887,-825.32,0.00023835,4]
[365270088,1749570654898,-460.0,0.00023835,4]
[365270090,1749570654908,-460.0,0.00023835,4]
[365270091,1749570654917,-527.68,0.00023835,4]
[365270092,1749570654926,-1047.45,0.00023835,4]
[365270093,1749570654936,-460.0,0.00023835,4]
[365270094,1749570654946,-923.93,0.00023835,4]
[365270095,1749570654956,-549.64,0.00023835,4]
[365270096,1749570654966,-460.0,0.00023835,4]
[365270097,1749570654975,-460.0,0.00023835,4]
[365270098,1749570654984,-716.15,0.00023835,4]
[365270099,1749570654994,-460.0,0.00023835,4]
[365270100,1749570655003,-626.47,0.00023835,4]
[365270101,1749570655012,-460.0,0.00023835,2]
[365270102,1749570655022,-1679.86,0.00023835,4]
[365270103,1749570655032,-460.0,0.00023835,4]
[365270104,1749570655041,-460.0,0.00023835,4]
[365270105,1749570655051,-1525.67,0.00023835,4]
[365270106,1749570655061,-706.05,0.00023835,4]
[365270107,1749570655070,-698.81,0.00023835,4]
[365270108,1749570655080,-1554.25,0.00023835,4]
[365270109,1749570655091,-183.05286985,0.00023835,4]
[365270110,1749570655100,-160.0,0.00023835,4]
[365270111,1749570655109,-471.45555516,0.00023835,4]
[365270112,1749570655121,-1965.04,0.00023835,4]
[365270113,1749570655136,-460.0,0.00023835,4]
[365270114,1749570655145,-415.32988689,0.00023835,4]
[365270115,1749570655154,-460.0,0.00023835,4]
[365270116,1749570655164,-814.81,0.00023835,4]
[365270117,1749570655173,-460.0,0.00023835,4]
[365270118,1749570655182,-1416.8,0.00023835,4]
[365270119,1749570655193,-1837.17,0.00023835,4]
[365270120,1749570655202,-1153.37,0.00023835,4]
[365270121,1749570655211,-177.5657859,0.00023836,2]
[365270122,1749570655221,-571.3360607,0.00023836,2]
[365270123,1749570655230,-158.7504224,0.00023836,2]
[365270124,1749570655240,-158.7504224,0.00023836,2]
[365270125,1749570655249,-6000.0,0.00023848,3]
[365270126,1749570655258,-5000.0,0.00023851,2]
[365270127,1749570655269,-935.0,0.00023879,2]
[365270128,1749570655278,-4772.04,0.00023898,3]
[365270129,1749570655288,-11847.80436632,0.000239,3]
[365270130,1749570655297,-424.12530924,0.000239,3]
[365270131,1749570655307,-1012.17805154,0.00023908,2]
[365270132,1749570655316,-662.84716369,0.00023934,10]
[365270133,1749570655328,-3000.0,0.00023942,3]
[365270134,1749570655337,-151.0,0.00023942,7]
[365270135,1749570655347,-443.72833664,0.00023942,2]
[365270136,1749570655356,-151.0,0.00023942,7]
[365270137,1749570655366,-5000.0,0.00023986,3]
[365270138,1749570655376,-904.0,0.00024,5]
[365270139,1749570655385,-2000.00000099,0.00024,2]
[365270140,1749570655395,-500.0,0.00024,3]
[365270141,1749570655404,-500.0,0.00024,2]
[365270142,1749570655413,-500.0,0.00024,3]
[365270143,1749570655425,-500.0,0.00024,3]
[365270144,1749570655434,-500.0,0.00024,3]
[365270145,1749570655448,-500.0,0.00024,3]
[365270146,1749570655458,-500.0,0.00024,3]
[365270147,1749570655467,-500.0,0.00024,3]
[365270148,1749570655477,-200.0,0.00024,2]
[365270149,1749570655489,-151.0,0.00024,10]
[365270150,1749570655498,-153.0,0.00024055,2]
[365270151,1749570655508,-573.3540349,0.00024055,2]
[365270152,1749570655520,-176.8341807,0.00024055,2]
[365270153,1749570655531,-158.7504224,0.00024055,2]
[365270154,1749570655541,-153.0,0.00024055,2]
[365270155,1749570655550,-176.8341807,0.00024055,2]
[365270156,1749570655560,-573.3540349,0.00024055,2]
[365270157,1749570655570,-158.7504224,0.00024055,2]
[365270158,1749570655579,-158.7504224,0.00024055,2]
[365270159,1749570655588,-176.8341807,0.00024055,2]
[365270160,1749570655598,-153.0,0.00024055,2]
[365270161,1749570655608,-573.3540349,0.00024055,2]
[365270162,1749570655618,-153.0,0.00024055,2]
[365270163,1749570655628,-5000.0,0.00024062,3]
[365270164,1749570655637,-662.84716369,0.00024072,10]
[365270165,1749570655647,-935.0,0.00024081,2]
[365270166,1749570655657,-460.0,0.00024109,4]
[365270167,1749570655667,-248.94930371,0.00024109,4]
[365270168,1749570655678,-1334.73,0.00024109,4]
[365270169,1749570655687,-650.05,0.00024109,4]
[365270170,1749570655701,-460.0,0.00024109,4]
[365270171,1749570655711,-460.0,0.00024109,4]
[365270172,1749570655721,-460.0,0.00024109,4]
[365270173,1749570655730,-460.0,0.00024109,4]
[365270174,1749570655740,-498.85082259,0.00024109,4]
[365270175,1749570655750,-812.5,0.00024109,4]
[365270176,1749570655760,-460.0,0.00024109,4]
[365270177,1749570655770,-825.32,0.00024109,4]
[365270178,1749570655780,-220.0,0.00024109,4]
[365270179,1749570655790,-460.0,0.00024109,4]
[365270180,1749570655801,-527.68,0.00024109,4]
[365270181,1749570655811,-1047.45,0.00024109,4]
[365270182,1749570655822,-460.0,0.00024109,4]
[365270183,1749570655832,-923.93,0.00024109,4]
[365270184,1749570655842,-549.64,0.00024109,4]
[365270185,1749570655853,-460.0,0.00024109,4]
[365270186,1749570655863,-220.0,0.00024109,4]
[365270187,1749570655873,-716.15,0.00024109,4]
[365270188,1749570655883,-460.0,0.00024109,4]
[365270189,1749570655893,-626.47,0.00024109,4]
[365270190,1749570655903,-460.0,0.00024109,2]
[365270191,1749570655913,-1679.86,0.00024109,4]
[365270192,1749570655923,-460.0,0.00024109,4]
[365270193,1749570655933,-597.23,0.00024109,4]
[365270194,1749570655944,-1525.67,0.00024109,4]
[365270195,1749570655953,-706.05,0.00024109,4]
[365270196,1749570655963,-698.81,0.00024109,4]
[365270197,1749570655973,-1554.25,0.00024109,4]
[365270198,1749570655983,-1965.04,0.00024109,4]
[365270199,1749570655992,-460.0,0.00024109,4]
[365270200,1749570656002,-460.0,0.00024109,4]
[365270201,1749570656012,-814.81,0.00024109,4]
[365270202,1749570656021,-460.0,0.00024109,4]
[365270203,1749570656031,-1416.8,0.00024109,4]
[365270204,1749570656040,-1837.17,0.00024109,4]
[365270205,1749570656050,-1153.37,0.00024109,4]
[365270206,1749570656060,-1346.701887,0.00024123,3]
[365270207,1749570656070,-215.0738,0.00024124,2]
[365270208,1749570656079,-2200.0,0.00024167,2]
[365270209,1749570656089,-43388.53,0.000242,2]
[365270210,1749570656099,-89570.45618307,0.000242,7]
[365270211,1749570656232,-16825.48381693,0.000242,7]
[365270212,1749570656242,-154.508517,0.000242,7]
[365270213,1749570656252,-842.5625,0.000242,3]
[365270214,1749570656261,-151.0,0.000242,7]
[365270215,1749570656271,-151.0,0.000242,7]
[365270216,1749570656281,-151.0,0.000242,7]
[365270217,1749570656290,-443.72833675,0.00024204,2]
[365270218,1749570656299,-662.84716369,0.0002421,10]
[365270219,1749570656309,-151.0,0.000243,10]
[365270220,1749570656318,-151.0,0.000243,9]
[365270221,1749570656327,-311.4322408,0.00024329,2]
[365270222,1749570656337,-200.0,0.0002433,10]
[365270223,1749570656347,-662.84716369,0.00024348,11]
[365270224,1749570656356,-460.0,0.00024383,4]
[365270225,1749570656366,-1334.73,0.00024383,4]
[365270226,1749570656375,-650.05,0.00024383,4]
[365270227,1749570656384,-460.0,0.00024383,4]
[365270228,1749570656394,-460.0,0.00024383,4]
[365270229,1749570656403,-180.0,0.00024383,4]
[365270230,1749570656413,-460.0,0.00024383,4]
[365270231,1749570656422,-812.5,0.00024383,4]
[365270232,1749570656432,-294.1447609,0.00024383,4]
[365270233,1749570656444,-825.32,0.00024383,4]
[365270234,1749570656454,-460.0,0.00024383,4]
[365270235,1749570656464,-527.68,0.00024383,4]
[365270236,1749570656475,-1047.45,0.00024383,4]
[365270237,1749570656488,-265.56079701,0.00024383,4]
[365270238,1749570656498,-923.93,0.00024383,4]
[365270239,1749570656508,-549.64,0.00024383,4]
[365270240,1749570656518,-240.58,0.00024383,4]
[365270241,1749570656530,-716.15,0.00024383,4]
[365270242,1749570656539,-460.0,0.00024383,4]
[365270243,1749570656549,-626.47,0.00024383,4]
[365270244,1749570656560,-460.0,0.00024383,2]
[365270245,1749570656571,-1679.86,0.00024383,4]
[365270246,1749570656581,-460.0,0.00024383,4]
[365270247,1749570656591,-1525.67,0.00024383,4]
[365270248,1749570656601,-706.05,0.00024383,4]
[365270249,1749570656610,-698.81,0.00024383,4]
[365270250,1749570656620,-1554.25,0.00024383,4]
[365270251,1749570656629,-1965.04,0.00024383,4]
[365270252,1749570656639,-460.0,0.00024383,4]
[365270253,1749570656649,-460.0,0.00024383,4]
[365270254,1749570656659,-814.81,0.00024383,4]
[365270255,1749570656669,-460.0,0.00024383,4]
[365270256,1749570656679,-1416.8,0.00024383,4]
[365270257,1749570656689,-1837.17,0.00024383,4]
[365270258,1749570656702,-1153.37,0.00024383,4]
[365270259,1749570656712,-5000.0,0.00024399,2]
[365270260,1749570656722,-151.0,0.00024399,7]
[365270261,1749570656732,-800.0,0.00024485,2]
[365270262,1749570656742,-662.84716369,0.00024486,11]
[365270263,1749570656752,-1572.41707947,0.00024499,2]
[365270264,1749570656763,-2734.39246883,0.000245,2]
[365270265,1749570656772,-800.0,0.00024526,2]
[365270266,1749570656783,-4044.35,0.00024533,2]
[365270267,1749570656792,-4313.32274357,0.0002455,2]
[365270268,1749570656804,-800.0,0.00024557,2]
[365270269,1749570656814,-4313.32274353,0.00024572,2]
[365270270,1749570656823,-674.22,0.00024574,5]
[365270271,1749570656833,-4313.32274353,0.00024594,2]
[365270272,1749570656843,-2000.0,0.000246,2]
[365270273,1749570656853,-2000.0,0.000246,2]
[365270274,1749570656862,-564.37,0.000246,7]
[365270275,1749570656872,-800.0,0.00024601,2]
[365270276,1749570656882,-2174.63291492,0.00024616,2]
[365270277,1749570656892,-153.0,0.00024616,3]
[365270278,1749570656902,-153.0,0.00024616,3]
[365270279,1749570656911,-153.0,0.00024616,3]
[365270280,1749570656921,-153.0,0.00024616,3]
[365270281,1749570656931,-154.20873316,0.00024616,3]
[365270282,1749570656943,-316.0,0.00024616,3]
[365270283,1749570656952,-316.0,0.00024616,3]
[365270284,1749570656963,-316.0,0.00024616,3]
[365270285,1749570656973,-316.0,0.00024616,3]
[365270286,1749570656982,-316.0,0.00024616,3]
[365270287,1749570656993,-316.0,0.00024616,3]
[365270288,1749570657003,-316.0,0.00024616,3]
[365270289,1749570657012,-315.9982552,0.00024616,3]
[365270290,1749570657022,-789.704519,0.00024616,7]
[365270291,1749570657032,-789.704519,0.00024616,7]
[365270292,1749570657042,-339.248987,0.00024616,7]
[365270293,1749570657052,-339.248987,0.00024616,7]
[365270294,1749570657062,-4313.32274353,0.00024617,2]
[365270295,1749570657072,-151.0,0.00024617,7]
[365270296,1749570657082,-151.0,0.00024617,7]
[365270297,1749570657092,-662.84716369,0.00024624,11]
[365270298,1749570657102,-4313.32274353,0.00024639,2]
[365270299,1749570657111,-7623.75019456,0.0002465,7]
[365270300,1749570657329,-460.0,0.00021095,4]
[365270301,1749570657339,-109.14178698,0.00023561,4]
[365270307,1749570657454,-460.0,0.00021095,4]
[365270309,1749570657463,-460.0,0.00021369,4]
[365270311,1749570657473,-460.0,0.00021369,4]
[365270313,1749570657486,-460.0,0.00021643,4]
[365270315,1749570657496,-460.0,0.00021917,4]
[365270317,1749570657506,-100.9518435,0.00022191,4]
[365270320,1749570657518,-359.0481565,0.00022191,4]
[365270322,1749570657527,-460.0,0.00022465,4]
[365270324,1749570657537,-460.0,0.00022739,4]
[365270326,1749570657547,-460.0,0.00023013,4]
[365270328,1749570657557,-460.0,0.00023287,4]
[365270330,1749570657567,-360.44821302,0.00023561,4]
[365270332,1749570657576,-287.94,0.00023561,4]
[365270334,1749570657586,-469.59,0.00023835,4]
[365270336,1749570657596,-573.3540349,0.00024055,2]
[365270338,1749570657607,-176.8341807,0.00024055,2]
[365270340,1749570657617,-469.59,0.00024109,4]
[365270342,1749570657627,-469.59,0.00024383,4]
[365270344,1749570657636,-1000.0,0.000246,2]
[365270346,1749570657646,-12654.51870498,0.0002465,7]
[365270348,1749570657656,-107051.95360062,0.0002465,2]
[365270350,1749570657666,-151.0,0.0002465,7]
[365270352,1749570657676,-151.0,0.0002465,7]
[365270354,1749570657686,-152.498407,0.0002465,7]
[365270356,1749570657696,-154.434336,0.0002465,7]
[365270358,1749570657706,-151.0,0.0002465,7]
[365270360,1749570657715,-151.0,0.0002465,7]
[365270362,1749570657726,-151.0,0.00024657,7]
[365270364,1749570657735,-151.0,0.00024657,7]
[365270366,1749570657745,-151.0,0.00024657,7]
[365270368,1749570657755,-302.584129,0.00024657,7]
[365270370,1749570657764,-302.584129,0.00024657,7]
[365270372,1749570657774,-151.0,0.00024657,7]
[365270374,1749570657783,-151.0,0.00024657,7]
[365270376,1749570657794,-460.0,0.00024657,4]
[365270379,1749570657803,-650.05,0.00024657,4]
[365270381,1749570657813,-460.0,0.00024657,4]
[365270383,1749570657823,-460.0,0.00024657,4]
[365270385,1749570657833,-460.0,0.00024657,4]
[365270387,1749570657843,-812.5,0.00024657,4]
[365270389,1749570657853,-825.32,0.00024657,4]
[365270391,1749570657863,-460.0,0.00024657,4]
[365270393,1749570657873,-527.68,0.00024657,4]
[365270395,1749570657883,-1047.45,0.00024657,4]
[365270397,1749570657893,-923.93,0.00024657,4]
[365270399,1749570657903,-549.64,0.00024657,4]
[365270401,1749570657912,-716.15,0.00024657,4]
[365270403,1749570657922,-529.80645475,0.00024657,4]
[365270405,1749570657931,-626.47,0.00024657,4]
[365270407,1749570657942,-460.0,0.00024657,2]
[365270409,1749570657952,-1679.86,0.00024657,4]
[365270411,1749570657962,-460.0,0.00024657,4]
[365270413,1749570657972,-1525.67,0.00024657,4]
[365270415,1749570657981,-706.05,0.00024657,4]
[365270417,1749570657991,-698.81,0.00024657,4]
[365270419,1749570658001,-1554.25,0.00024657,4]
[365270422,1749570658010,-1965.04,0.00024657,4]
[365270424,1749570658020,-460.0,0.00024657,4]
[365270426,1749570658029,-460.0,0.00024657,4]
[365270428,1749570658039,-814.81,0.00024657,4]
[365270430,1749570658050,-460.0,0.00024657,4]
[365270432,1749570658061,-1416.8,0.00024657,4]
[365270434,1749570658070,-1837.17,0.00024657,4]
[365270436,1749570658080,-1153.37,0.00024657,4]
[365270438,1749570658089,-469.59,0.00024657,4]
[365270440,1749570658099,-10000.0,0.00024658,10]
[365270442,1749570658112,-200.0,0.00024658,15]
[365270444,1749570658121,-380.0,0.00024658,2]
[365270446,1749570658131,-243.169856,0.00024658,7]
[365270448,1749570658140,-243.169856,0.00024658,7]
[365270450,1749570658150,-151.0,0.00024658,7]
[365270452,1749570658161,-151.0,0.00024658,7]
[365270454,1749570658171,-4313.32274353,0.00024661,2]
[365270456,1749570658180,-86754.71,0.0002468,2]
[365270458,1749570658190,-151.0,0.0002468,7]
[365270460,1749570658200,-151.0,0.0002468,7]
[365270463,1749570658210,-151.0,0.0002468,7]
[365270465,1749570658219,-151.0,0.0002468,7]
[365270467,1749570658229,-151.0,0.0002468,7]
[365270469,1749570658238,-151.0,0.0002468,7]
[365270471,1749570658247,-151.0,0.0002468,7]
[365270473,1749570658257,-280.23580309,0.0002468,7]
[365270475,1749570658267,-789.704519,0.00024682,7]
[365270477,1749570658276,-789.704519,0.00024682,7]
[365270479,1749570658286,-339.248987,0.00024682,7]
[365270481,1749570658296,-339.248987,0.00024682,7]
[365270483,1749570658306,-4313.32274353,0.00024683,2]
[365270485,1749570658316,-5921.75721298,0.000247,2]
[365270487,1749570658326,-11388.59942975,0.000247,2]
[365270489,1749570658335,-2000.0,0.000247,2]
[365270491,1749570658345,-2000.0,0.000247,2]
[365270493,1749570658355,-1683039.072066,0.000247,15]
[365270495,1749570658364,-160.0,0.000247,10]
[365270498,1749570658374,-151.0,0.000247,7]
[365270500,1749570658384,-243.169856,0.000247,7]
[365270502,1749570658393,-243.169856,0.000247,7]
[365270504,1749570658403,-151.0,0.000247,7]
[365270506,1749570658412,-151.0,0.000247,7]
[365270508,1749570658422,-298.559307,0.000247,7]
[365270510,1749570658432,-296.083459,0.000247,7]
[365270512,1749570658442,-302.584129,0.000247,7]
[365270514,1749570658451,-302.584129,0.000247,7]
[365270516,1749570658461,-179.596335,0.000247,7]
[365270518,1749570658471,-179.596335,0.000247,7]
[365270520,1749570658482,-151.0,0.000247,7]
[365270522,1749570658492,-301.082019,0.000247,7]
[365270524,1749570658501,-252.298943,0.000247,7]
[365270526,1749570658511,-151.0,0.000247,7]
[365270528,1749570658522,-151.0,0.000247,7]
[365270530,1749570658532,-151.0,0.000247,7]
[365270532,1749570658542,-151.0,0.000247,7]
[365270534,1749570658552,-789.704519,0.000247,7]
[365270536,1749570658561,-789.704519,0.000247,7]
[365270538,1749570658572,-339.248987,0.000247,7]
[365270541,1749570658582,-339.248987,0.000247,7]